fUSD/lending_fUSD_20240101
["ID","MTS","AMOUNT","RATE_DAILY","PERIOD"]
[309767991,1704108191676,-403.22829154,0.00024893,2]
[309767992,1704108191702,-2311.37208248,0.00024893,2]
[309767993,1704108191728,-2937.00836296,0.00024893,2]
[309767994,1704108191753,-5000.0,0.00024893,2]
[309767995,1704108191783,-244.02773352,0.00024893,2]
[309767996,1704108191809,-1252.56346846,0.00024893,2]
[309767997,1704108191835,-155.0,0.00024893,2]
[309767998,1704108191861,-400.0,0.00024893,2]
[309767999,1704108191886,-155.31483863,0.00024893,2]
[309768000,1704108191911,-249.39139602,0.00024893,2]
[309768001,1704108191937,-280.14979655,0.00024893,2]
[309768002,1704108191963,-309.02030832,0.00024893,2]
[309768003,1704108191991,-3920.35158571,0.00024893,2]
[309768004,1704108192017,-245.15067094,0.00024893,2]
[309768005,1704108192043,-156.96140636,0.00024893,2]
[309768006,1704108192069,-269.83626346,0.00024893,2]
[309768007,1704108192094,-619.96222449,0.00024893,2]
[309768008,1704108192121,-212.14384615,0.00024893,2]
[309768009,1704108192146,-1847.42621652,0.00024893,2]
[309768010,1704108192172,-205.84796235,0.00024893,2]
[309768011,1704108192198,-202.52398103,0.00024893,2]
[309768012,1704108192223,-301.20793522,0.00024893,2]
[309768013,1704108192249,-579.61035159,0.00024893,2]
[309768014,1704108192427,-435.31393712,0.00024893,2]
[309768015,1704108192453,-158.21861741,0.00024893,2]
[309768016,1704108192477,-1057.98752379,0.00024893,2]
[309768017,1704108192504,-155.0,0.00024894,2]
[309768018,1704108192529,-206.44208894,0.00024894,2]
[309768019,1704108192554,-155.0,0.00024894,2]
[309768020,1704108192580,-234.34924419,0.00024894,2]
[309768021,1704108192605,-756.20900926,0.00024894,2]
[309768022,1704108192630,-210.92031935,0.00024894,2]
[309768023,1704108192655,-161.18888351,0.00024894,2]
[309768024,1704108192695,-229.94338678,0.00024894,2]
[309768025,1704108192722,-155.0,0.00024894,2]
[309768026,1704108192749,-270.17434479,0.00024894,2]
[309768027,1704108192777,-492.83979718,0.00024894,2]
[309768028,1704108192804,-196.21358155,0.00024894,2]
[309768029,1704108192830,-155.0,0.00024894,2]
[309768030,1704108192857,-369.84974276,0.00024894,2]
[309768031,1704108192884,-152.14668776,0.00024895,2]
[309768032,1704108192911,-2129.994798,0.00024999,2]
[309768033,1704108192937,-4601.91989485,0.00024999,2]
[309768034,1704108192963,-2605.2545687,0.00024999,2]
[309768035,1704108192990,-727.15877766,0.00025,2]
[309768036,1704108207489,420.31572492,0.00024363,2]
[309768038,1704108219501,-530.98245295,0.00025123,2]
[309768039,1704108219528,-155.0,0.00025123,2]
[309768040,1704108219555,-541.22410251,0.00025123,2]
[309768041,1704108219584,-513.70005074,0.00025123,2]
[309768042,1704108219611,-217.17335148,0.00025123,2]
[309768043,1704108219636,-280.14979655,0.00025124,2]
[309768044,1704108219663,-492.83979718,0.00025124,2]
[309768045,1704108219691,-393.68225135,0.00025124,2]
[309768046,1704108219716,-227.70232845,0.00025251,2]
[309768047,1704108219741,-155.0,0.00025377,2]
[309768048,1704108219766,-2891.24890645,0.00025377,2]
[309768049,1704108219794,-2610.96544886,0.00025377,2]
[309768050,1704108219819,-540.90072547,0.00025377,2]
[309768051,1704108219844,-288.15054455,0.00025377,2]
[309768052,1704108219869,-164.2384182,0.00025377,2]
[309768053,1704108219897,-16706.72309889,0.00025377,2]
[309768054,1704108219922,-527.27825206,0.00025377,2]
[309768055,1704108219947,-241.61161094,0.00025377,2]
[309768056,1704108219973,-18948.26672582,0.00025377,2]
[309768057,1704108220000,-202.52398103,0.00025378,2]
[309768058,1704108220025,-576.41490709,0.00025378,2]
[309768059,1704108220050,-271.60356637,0.00025378,2]
[309768060,1704108220075,-155.0,0.00025378,2]
[309768061,1704108220105,-650.14671211,0.00025378,2]
[309768062,1704108220131,-278.95504842,0.00025378,2]
[309768063,1704108220156,-157.23200511,0.00025378,2]
[309768064,1704108220182,-1530.00956014,0.00025378,2]
[309768124,1704108631449,-435.31393712,0.00024845,2]
[309768125,1704108631460,-210.92031935,0.00024845,2]
[309768126,1704108631469,-416.54397333,0.00024845,2]
[309768127,1704108631479,-155.0,0.00024845,2]
[309768128,1704108631489,-288.15054455,0.00024845,2]
[309768129,1704108631500,-1847.42621652,0.00024845,2]
[309768130,1704108631509,-360.87448358,0.00024845,2]
[309768131,1704108631518,-5258.88141572,0.00024845,2]
[309768132,1704108631527,-161.18888351,0.00024846,2]
[309768133,1704108631537,-1762.02403637,0.00024846,2]
[309768134,1704108631546,-300.21781968,0.00024846,2]
[309768135,1704108631556,-155.0,0.00024846,2]
[309768136,1704108631566,-234.34924419,0.00024846,2]
[309768137,1704108631575,-521.96752557,0.00024846,2]
[309768138,1704108631585,-16706.72309889,0.00024846,2]
[309768139,1704108631594,-300.21781968,0.00024846,2]
[309768140,1704108631604,-626.83867298,0.00024846,2]
[309768141,1704108631613,-576.50989765,0.00024847,2]
[309768142,1704108631622,-2129.994798,0.00024847,2]
[309768143,1704108631631,-155.0,0.00024847,2]
[309768144,1704108631642,-155.0,0.00024847,2]
[309768145,1704108631652,-269.83626346,0.00024847,2]
[309768146,1704108631662,-220.26666446,0.00024847,2]
[309768147,1704108631672,-309.02030832,0.00024848,2]
[309768148,1704108631682,-155.0,0.00024848,2]
[309768158,1704108631876,-156.96140636,0.00024848,2]
[309768162,1704108631933,-619.96222449,0.00024848,2]
[309768164,1704108631943,-160.05593525,0.00024848,2]
[309768165,1704108631952,-152.14668765,0.00024849,2]
[309768167,1704108631962,-214.3573013,0.00024945,2]
[309768168,1704108631971,-650.14671211,0.00024945,2]
[309768170,1704108631980,-2466.96629898,0.00024945,2]
[309768172,1704108631990,-2610.96544886,0.00024945,2]
[309768174,1704108631999,-280.14979655,0.00024946,2]
[309768175,1704108632009,-336.35995625,0.00024946,2]
[309768177,1704108632018,-241.61161094,0.00024946,2]
[309768179,1704108632028,-3316.86540737,0.00024946,2]
[309768181,1704108632039,-2891.24890645,0.00024946,2]
[309768182,1704108632048,-3920.35158571,0.00024946,2]
[309768184,1704108632058,-2605.2545687,0.00024946,2]
[309768186,1704108632067,-362.82049166,0.00024947,2]
[309768187,1704108632076,-248.12804319,0.00024947,2]
[309768189,1704108632086,-541.22410251,0.00024947,2]
[309768191,1704108632096,-5706.23288983,0.00024947,2]
[309768193,1704108632105,-202.52398103,0.00024947,2]
[309768194,1704108632115,-251.99880636,0.00024947,2]
[309768196,1704108632124,-530.98245295,0.00024947,2]
[309768197,1704108632134,-155.0,0.00024947,2]
[309768198,1704108632144,-527.27825206,0.00024947,2]
[309768199,1704108632154,-522.42025024,0.00024947,2]
[309768200,1704108632163,-1040.98279535,0.00024948,2]
[309768201,1704108632173,-249.39139602,0.00024948,2]
[309768202,1704108632182,-101.07582064,0.00024948,2]
[309768203,1704108632205,-300.21781968,0.00024846,2]
[309768204,1704108632214,-956.91170315,0.00024948,2]
[309768205,1704108632224,-155.0,0.00024948,2]
[309768206,1704108632234,-2770.37255743,0.00024948,2]
[309768207,1704108632243,-155.0,0.00024948,2]
[309768208,1704108632252,-2937.00836296,0.00024948,2]
[309768209,1704108632262,-259.19969068,0.00024948,2]
[309768210,1704108632271,-244.02773352,0.00024948,2]
[309768211,1704108632281,-383.24855968,0.00024949,2]
[309768212,1704108632291,-540.90072547,0.00024949,2]
[309768213,1704108632300,-369.84974276,0.00024949,2]
[309768214,1704108632310,-403.22829154,0.00024949,2]
[309768215,1704108632321,-513.70005074,0.00024949,2]
[309768216,1704108632330,-155.0,0.00024949,2]
[309768217,1704108632339,-25125.68128321,0.00024949,2]
[309768218,1704108632348,-18948.26672582,0.00024949,2]
[309768219,1704108632357,-393.68225135,0.0002495,2]
[309768220,1704108632367,-234.78997094,0.0002495,2]
[309768221,1704108632377,-1252.56346846,0.0002495,2]
[309768222,1704108632386,-10655.87494515,0.0002495,2]
[309768223,1704108632395,-158.0787597,0.0002495,2]
[309768224,1704108632405,-3035.06116925,0.0002495,2]
[309768225,1704108632414,-4471.5640939,0.0002495,2]
[309768226,1704108632424,-301.20793522,0.00024951,2]
[309768227,1704108632434,-402.17174956,0.00024951,2]
[309768228,1704108632443,-229.94338678,0.00024951,2]
[309768229,1704108632452,-937.43506641,0.00024951,2]
[309768230,1704108632461,-1702.94991301,0.00024951,2]
[309768231,1704108632470,-155.0,0.00024951,2]
[309768233,1704108632480,-217.17335148,0.00024952,2]
[309768235,1704108632489,-440.09,0.0002496,2]
[309768237,1704108632498,-918.0,0.00025,2]
[309768239,1704108632507,-413.7733613,0.00025119,2]
[309768241,1704108632516,-153.02,0.00025135,2]
[309768243,1704108632527,-153.02,0.00025299,2]
[309768245,1704108632535,-264.88458416,0.00025374,2]
[309768247,1704108632544,-491.6362069,0.00025378,2]
[309768249,1704108632553,-324.34951991,0.00025378,2]
[309768251,1704108632562,-494.03717428,0.00025378,2]
[309768253,1704108632573,-287.2858572,0.00025379,2]
[309768255,1704108632582,-230.25227354,0.00025379,2]
[309768257,1704108632591,-153.02,0.00025463,2]
[309768258,1704108632600,-153.02,0.00025627,2]
[309768260,1704108632609,-155.0,0.00025636,2]
[309768262,1704108632618,-1008.9928293,0.00025636,2]
[309768265,1704108632637,-155.0,0.00025636,2]
[309768268,1704108632649,-14651.80598185,0.00025636,2]
[309768270,1704108632658,-246.56845087,0.00025636,2]
[309768272,1704108632668,-176.47406261,0.00025637,2]
[309768274,1704108632678,-1858.62647547,0.00025637,2]
[309768276,1704108632688,-809.80034555,0.00025637,2]
[309768278,1704108632697,-180.58780152,0.00025637,2]
[309768280,1704108632707,-3764.93,0.00025639,2]
[309768282,1704108632717,-152.14668765,0.00025712,2]
[309768284,1704108632726,-153.02,0.0002579,2]
[309768286,1704108632736,-155.62034898,0.00025911,2]
[309768288,1704108632746,-745.5297383,0.00025911,2]
[309768290,1704108632755,-180.22658385,0.00025911,2]
[309768291,1704108632765,-188.7816118,0.00025911,2]
[309768294,1704108632775,-166.03627941,0.00025913,2]
[309768295,1704108632784,-805.62368405,0.00025913,2]
[309768297,1704108632794,-153.02,0.00025954,2]
[309768300,1704108632804,-3434.94954929,0.00026,2]
[309768302,1704108632813,-10000.0,0.00026,2]
[309768304,1704108632823,-153.02,0.00026118,2]
[309768306,1704108632833,-153.02,0.00026282,2]
[309768308,1704108632842,-153.02,0.00026445,2]
[309768310,1704108632851,-152.14668765,0.00026576,2]
[309768312,1704108632861,-325.58,0.00026949,2]
[309768314,1704108632870,-2194.40618658,0.00026993,2]
[309768316,1704108632879,-227.13305078,0.00026993,2]
[309768318,1704108632889,-329.8128506,0.00026993,2]
[309768320,1704108632899,-155.53571407,0.00026994,2]
[309768322,1704108632908,-212.45571597,0.00026995,2]
[309768324,1704108632918,-179.73746542,0.00026995,2]
[309768326,1704108632928,-206.41522007,0.00026995,2]
[309768328,1704108632938,-200.0,0.00026995,2]
[309768330,1704108632948,-295.31430781,0.00026995,2]
[309768332,1704108632957,-279.68298451,0.00026995,2]
[309768334,1704108632966,-1243.2926586,0.00026995,2]
[309768335,1704108632976,-450.0,0.00027,3]
[309768338,1704108632985,-222.71937821,0.00027,2]
[309768340,1704108632998,-20000.0,0.00027,2]
[309768341,1704108633008,-152.14668765,0.00027439,2]
[309768343,1704108633017,-202.19997645,0.00028,2]
[309768345,1704108633027,-4662.81,0.00028063,2]
[309768347,1704108633037,-152.14668765,0.00028303,2]
[309768349,1704108633048,-2000.0,0.00028306,2]
[309768351,1704108633057,-805.3,0.00028343,2]
[309768353,1704108633067,-157.24,0.00028366,2]
[309768355,1704108633077,-180.62,0.00028444,2]
[309768357,1704108633088,-173.45,0.00028541,2]
[309768359,1704108633098,-239.1,0.00028632,2]
[309768361,1704108633108,-195.43,0.00028686,10]
[309768363,1704108633117,-155.23159362,0.00028995,2]
[309768365,1704108633128,-207.47807473,0.00028996,2]
[309768367,1704108633137,-254.13142638,0.00028996,2]
[309768369,1704108633147,-155.22457457,0.00028996,2]
[309768371,1704108633157,-500.0,0.00029,3]
[309768373,1704108633166,-1581.48,0.00029038,2]
[309768375,1704108633175,-164.18,0.00029059,2]
[309768377,1704108633185,-152.14668765,0.00029166,2]
[309768379,1704108633194,-162.11,0.00029209,2]
[309768381,1704108633204,-325.58,0.00029213,2]
[309768383,1704108633214,-164.18,0.00029422,2]
[309768385,1704108633223,-1000.0,0.00029554,2]
[309768387,1704108633233,-239.1,0.0002961,2]
[309768389,1704108633242,-164.18,0.00029785,2]
[309768391,1704108633252,-195.16586705,0.000298,2]
[309768392,1704108633264,-1092.4092895,0.0003,2]
[309768393,1704108633274,-164.18,0.00030148,2]
[309768394,1704108633283,-164.18,0.00030512,2]
[309768395,1704108633293,-239.1,0.00030589,2]
[309768396,1704108633306,-164.18,0.00030875,2]
[309768397,1704108633322,-550.0,0.00031,3]
[309768398,1704108633339,-164.18,0.00031238,2]
[309768399,1704108633350,-155.18521911,0.00031262,2]
[309768400,1704108633368,-155.0,0.00031262,2]
[309768401,1704108633381,-930.3125847,0.00031262,2]
[309768402,1704108633390,-1204.15146111,0.00031262,4]
[309768403,1704108633399,-260.8115747,0.00031262,4]
[309768404,1704108633409,-4312.52960342,0.00031262,4]
[309768405,1704108633434,-5474.32881749,0.00031262,4]
[309768406,1704108633443,-1072.19600255,0.00031262,4]
[309768407,1704108633453,-305.18358661,0.00031262,4]
[309768408,1704108633463,-325.58,0.00031477,2]
[309768409,1704108633473,-239.1,0.00031567,2]
[309768410,1704108633483,-164.18,0.00031601,2]
[309768411,1704108633493,-356.47,0.00031727,2]
[309768412,1704108633503,-154.1,0.0003174,2]
[309768413,1704108633512,-356.47,0.00031894,2]
[309768414,1704108633521,-162.11,0.00031956,2]
[309768415,1704108633532,-164.18,0.00031964,2]
[309768416,1704108633541,-11793.09401409,0.00032,2]
[309768417,1704108633552,-1301.0344254,0.00032,4]
[309768418,1704108633564,-356.47,0.00032061,2]
[309768419,1704108633573,-356.47,0.00032228,2]
[309768420,1704108633582,-356.47,0.00032395,2]
[309768421,1704108633592,-239.1,0.00032546,2]
[309768422,1704108633602,-356.47,0.00032562,2]
[309768423,1704108633612,-356.47,0.00032728,2]
[309768424,1704108633623,-356.47,0.00032895,2]
[309768425,1704108633633,-600.0,0.00033,3]
[309768426,1704108633643,-356.47,0.00033062,2]
[309768427,1704108633653,-356.47,0.00033229,2]
[309768428,1704108633663,-1000.0,0.00033248,2]
[309768429,1704108633675,-356.47,0.00033396,2]
[309768430,1704108633685,-164.56,0.00033458,2]
[309768431,1704108633696,-239.1,0.00033524,2]
[309768432,1704108633711,-356.47,0.00033563,2]
[309768433,1704108633721,-157.24,0.00033702,2]
[309768434,1704108633730,-344.40813999,0.0003373,14]
[309768435,1704108633739,-356.47,0.0003373,2]
[309768436,1704108633750,-325.58,0.00033741,2]
[309768437,1704108633760,-163.87,0.00033799,2]
[309768438,1704108633770,-356.47,0.00033897,2]
[309768439,1704108633781,-1000.0,0.00034,4]
[309768440,1704108633792,-356.47,0.00034064,2]
[309768441,1704108633802,-515.09865,0.00034177,2]
[309768442,1704108633814,-356.47,0.00034231,2]
[309768443,1704108633824,-4431.17,0.00034242,2]
[309768444,1704108633834,-356.47,0.00034398,2]
[309768445,1704108633844,-239.1,0.00034502,2]
[309768446,1704108633854,-356.47,0.00034565,2]
[309768447,1704108633864,-205.0,0.0003468,2]
[309768448,1704108633874,-150.0,0.00034692,2]
[309768449,1704108633883,-162.11,0.00034703,2]
[309768450,1704108633894,-356.47,0.00034732,2]
[309768451,1704108633904,-155.72102051,0.00034845,4]
[309768452,1704108633914,-266.75242119,0.00034845,4]
[309768453,1704108633925,-155.17312169,0.00034845,4]
[309768454,1704108633934,-8152.19750698,0.00034845,4]
[309768455,1704108633945,-356.47,0.00034899,2]
[309768456,1704108633954,-158.21370246,0.000349,2]
[309768457,1704108633966,-158.21370241,0.000349,2]
[309768458,1704108633977,-158.21370241,0.000349,2]
[309768459,1704108633987,-158.21370241,0.000349,2]
[309768460,1704108633997,-650.0,0.00035,3]
[309768461,1704108634006,-205.0,0.0003513,2]
[309768462,1704108634016,-171.71401526,0.0003516,7]
[309768463,1704108634026,-158.21370241,0.0003522,2]
[309768464,1704108634035,-150.0,0.00035258,2]
[309768465,1704108634045,-300.0,0.00035282,2]
[309768466,1704108634055,-333.33333,0.00035298,2]
[309768467,1704108634065,-333.33333,0.00035398,2]
[309768468,1704108634075,-239.1,0.00035481,2]
[309768469,1704108634084,-333.33333,0.00035498,2]
[309768470,1704108634094,-21180.9798981,0.00035506,8]
[309768471,1704108634103,-55555.0,0.00035516,3]
[309768472,1704108634113,-205.0,0.0003558,2]
[309768473,1704108634122,-333.33333,0.00035598,2]
[309768474,1704108634132,-82076.2971051,0.00035606,9]
[309768475,1704108634142,-218.34986468,0.00035606,2]
[309768476,1704108634151,-517.10620048,0.00035616,2]
[309768477,1704108634161,-511.97363638,0.00035616,2]
[309768478,1704108634170,-527.49622466,0.00035616,2]
[309768479,1704108634181,-500.0,0.00035616,2]
[309768480,1704108634190,-500.0,0.00035616,2]
[309768481,1704108634200,-500.0,0.00035616,2]
[309768482,1704108634209,-500.0,0.00035616,2]
[309768483,1704108634218,-500.0,0.00035616,2]
[309768484,1704108634228,-278.78090774,0.00035616,2]
[309768485,1704108634237,-500.0,0.00035616,2]
[309768486,1704108634247,-500.0,0.00035616,2]
[309768487,1704108634256,-500.0,0.00035616,2]
[309768488,1704108634266,-500.0,0.00035616,2]
[309768489,1704108634275,-613.37226148,0.00035616,2]
[309768490,1704108634285,-261.98859439,0.00035616,2]
[309768491,1704108634294,-500.0,0.00035616,2]
[309768492,1704108634304,-500.0,0.00035616,2]
[309768493,1704108634314,-500.0,0.00035616,2]
[309768494,1704108634323,-500.0,0.00035616,2]
[309768495,1704108634334,-500.0,0.00035616,2]
[309768496,1704108634343,-500.0,0.00035616,2]
[309768497,1704108634353,-500.0,0.00035616,2]
[309768498,1704108634362,-500.0,0.00035616,2]
[309768499,1704108634372,-500.0,0.00035616,2]
[309768500,1704108634382,-349.58416567,0.00035616,2]
[309768501,1704108634391,-268.2359701,0.00035616,2]
[309768502,1704108634401,-572.2711416,0.00035616,2]
[309768503,1704108634412,-500.0,0.00035616,2]
[309768504,1704108634422,-500.0,0.00035616,2]
[309768505,1704108634434,-500.0,0.00035616,2]
[309768506,1704108634443,-518.40934737,0.00035616,2]
[309768507,1704108634453,-500.0,0.00035616,2]
[309768508,1704108634463,-515.37918542,0.00035616,2]
[309768509,1704108634473,-531.84336801,0.00035616,2]
[309768510,1704108634483,-500.0,0.00035616,2]
[309768511,1704108634493,-500.0,0.00035616,2]
[309768512,1704108634502,-500.0,0.00035616,2]
[309768513,1704108634511,-306.883272,0.00035616,2]
[309768514,1704108634521,-260.88482041,0.00035616,2]
[309768515,1704108634530,-500.0,0.00035616,2]
[309768516,1704108634539,-499.76291816,0.00035616,2]
[309768517,1704108634550,-500.0,0.00035616,2]
[309768518,1704108634560,-500.0,0.00035616,2]
[309768519,1704108634569,-500.0,0.00035616,2]
[309768520,1704108634580,-500.0,0.00035616,2]
[309768521,1704108634593,-500.0,0.00035616,2]
[309768522,1704108634602,-500.0,0.00035616,2]
[309768523,1704108634611,-435.89352041,0.00035616,2]
[309768524,1704108634623,-500.0,0.00035616,2]
[309768525,1704108634632,-500.0,0.00035616,2]
[309768526,1704108634643,-500.0,0.00035616,2]
[309768527,1704108634653,-500.0,0.00035616,2]
[309768528,1704108634662,-500.0,0.00035616,2]
[309768529,1704108634672,-500.0,0.00035616,2]
[309768530,1704108634683,-500.0,0.00035616,2]
[309768531,1704108634693,-500.0,0.00035616,2]
[309768532,1704108634704,-500.0,0.00035616,2]
[309768533,1704108634714,-500.0,0.00035616,2]
[309768534,1704108634723,-500.0,0.00035616,2]
[309768535,1704108634732,-500.0,0.00035616,2]
[309768536,1704108634742,-500.0,0.00035616,2]
[309768537,1704108634753,-500.0,0.00035616,2]
[309768538,1704108634763,-500.0,0.00035616,2]
[309768539,1704108634772,-500.0,0.00035616,2]
[309768540,1704108634782,-500.0,0.00035616,2]
[309768541,1704108634791,-500.0,0.00035616,2]
[309768542,1704108634801,-500.0,0.00035616,2]
[309768543,1704108634811,-500.0,0.00035616,2]
[309768544,1704108634821,-500.0,0.00035616,2]
[309768545,1704108634833,-500.0,0.00035616,2]
[309768546,1704108634843,-500.0,0.00035616,2]
[309768547,1704108634852,-500.0,0.00035616,2]
[309768548,1704108634862,-500.0,0.00035616,2]
[309768549,1704108634873,-500.0,0.00035616,2]
[309768550,1704108634885,-500.0,0.00035616,2]
[309768551,1704108634895,-500.0,0.00035616,2]
[309768552,1704108634905,-500.0,0.00035616,2]
[309768553,1704108634914,-500.0,0.00035616,2]
[309768554,1704108634925,-500.0,0.00035616,2]
[309768555,1704108634934,-500.0,0.00035616,2]
[309768556,1704108634944,-500.0,0.00035616,2]
[309768557,1704108634954,-500.0,0.00035616,2]
[309768558,1704108634964,-500.0,0.00035616,2]
[309768559,1704108634974,-500.0,0.00035616,2]
[309768560,1704108634983,-500.0,0.00035616,2]
[309768561,1704108634993,-500.0,0.00035616,2]
[309768562,1704108635002,-500.0,0.00035616,2]
[309768563,1704108635012,-500.0,0.00035616,2]
[309768564,1704108635021,-500.0,0.00035616,2]
[309768565,1704108635031,-500.0,0.00035616,2]
[309768566,1704108635041,-500.0,0.00035616,7]
[309768567,1704108635051,-500.0,0.00035616,2]
[309768568,1704108635061,-505.81,0.00035616,2]
[309768569,1704108635070,-500.0,0.00035616,2]
[309768570,1704108635079,-500.0,0.00035616,2]
[309768571,1704108635089,-500.0,0.00035616,2]
[309768572,1704108635098,-150.0,0.00035616,2]
[309768573,1704108635108,-500.0,0.00035616,2]
[309768574,1704108635117,-508.29936886,0.00035616,2]
[309768575,1704108635142,-500.0,0.00035616,2]
[309768576,1704108635158,-500.0,0.00035616,2]
[309768577,1704108635168,-500.0,0.00035616,2]
[309768578,1704108635178,-500.0,0.00035616,2]
[309768579,1704108635188,-500.0,0.00035616,2]
[309768580,1704108635197,-500.0,0.00035616,2]
[309768581,1704108635208,-500.0,0.00035616,2]
[309768582,1704108635217,-500.0,0.00035616,2]
[309768583,1704108635227,-500.0,0.00035616,2]
[309768584,1704108635237,-500.0,0.00035616,2]
[309768585,1704108635247,-500.0,0.00035616,2]
[309768586,1704108635257,-500.0,0.00035616,2]
[309768587,1704108635267,-500.0,0.00035616,2]
[309768588,1704108635276,-500.0,0.00035616,2]
[309768589,1704108635286,-500.0,0.00035616,2]
[309768590,1704108635295,-500.0,0.00035616,2]
[309768591,1704108635305,-500.0,0.00035616,2]
[309768592,1704108635314,-320.44919358,0.00035616,2]
[309768593,1704108635323,-500.0,0.00035616,2]
[309768594,1704108635333,-500.0,0.00035616,2]
[309768595,1704108635343,-500.0,0.00035616,2]
[309768596,1704108635353,-500.0,0.00035616,2]
[309768597,1704108635362,-500.0,0.00035616,2]
[309768598,1704108635372,-500.0,0.00035616,2]
[309768599,1704108635381,-500.0,0.00035616,2]
[309768600,1704108635391,-540.04664297,0.00035616,2]
[309768601,1704108635400,-500.0,0.00035616,2]
[309768602,1704108635410,-559.89195995,0.00035616,2]
[309768603,1704108635423,-500.0,0.00035616,2]
[309768604,1704108635432,-393.13496211,0.00035616,2]
[309768605,1704108635441,-500.0,0.00035616,2]
[309768606,1704108635450,-500.0,0.00035616,2]
[309768607,1704108635461,-500.0,0.00035616,2]
[309768608,1704108635470,-500.0,0.00035616,2]
[309768609,1704108635479,-500.0,0.00035616,2]
[309768610,1704108635488,-500.0,0.00035616,2]
[309768611,1704108635498,-500.0,0.00035616,2]
[309768612,1704108635508,-500.0,0.00035616,2]
[309768613,1704108635519,-500.0,0.00035616,2]
[309768614,1704108635528,-500.0,0.00035616,2]
[309768615,1704108635538,-500.0,0.00035616,2]
[309768616,1704108635548,-500.0,0.00035616,2]
[309768617,1704108635557,-536.82068946,0.00035616,2]
[309768618,1704108635566,-500.0,0.00035616,2]
[309768619,1704108635576,-500.0,0.00035616,2]
[309768620,1704108635586,-500.0,0.00035616,2]
[309768621,1704108635595,-500.0,0.00035616,2]
[309768622,1704108635605,-500.0,0.00035616,2]
[309768623,1704108635615,-500.0,0.00035616,2]
[309768624,1704108635624,-500.0,0.00035616,2]
[309768625,1704108635633,-500.0,0.00035616,2]
[309768626,1704108635644,-500.0,0.00035616,2]
[309768627,1704108635653,-500.0,0.00035616,2]
[309768628,1704108635663,-500.0,0.00035616,2]
[309768629,1704108635674,-500.0,0.00035616,2]
[309768630,1704108635687,-500.0,0.00035616,2]
[309768631,1704108635696,-500.0,0.00035616,2]
[309768632,1704108635705,-500.0,0.00035616,2]
[309768633,1704108635714,-500.0,0.00035616,2]
[309768634,1704108635724,-500.0,0.00035616,2]
[309768635,1704108635734,-500.0,0.00035616,2]
[309768636,1704108635743,-500.0,0.00035616,2]
[309768637,1704108635753,-500.0,0.00035616,2]
[309768638,1704108635763,-500.0,0.00035616,2]
[309768639,1704108635772,-500.0,0.00035616,2]
[309768640,1704108635782,-500.0,0.00035616,2]
[309768641,1704108635791,-500.0,0.00035616,2]
[309768642,1704108635800,-500.0,0.00035616,2]
[309768643,1704108635810,-500.0,0.00035616,2]
[309768644,1704108635820,-500.0,0.00035616,2]
[309768645,1704108635831,-500.0,0.00035616,2]
[309768646,1704108635840,-500.0,0.00035616,2]
[309768647,1704108635849,-500.0,0.00035616,2]
[309768648,1704108635859,-500.0,0.00035616,2]
[309768649,1704108635868,-500.0,0.00035616,2]
[309768650,1704108635878,-500.0,0.00035616,2]
[309768651,1704108635888,-500.0,0.00035616,2]
[309768652,1704108635896,-500.0,0.00035616,2]
[309768653,1704108636077,-500.0,0.00035616,2]
[309768654,1704108636089,-500.0,0.00035616,2]
[309768655,1704108636100,-500.0,0.00035616,2]
[309768656,1704108636109,-225.76176749,0.00035616,2]